{"text_format":"1","workbook":"xlsx","n_sheets":3,"sheets":["入力用シート","提出用","提出用(手書版)"],"not_rendered":{"charts":0,"images":1,"macros":1,"external_links":0,"defined_names":1,"comments":1,"pivot_tables":0},"unopened":[],"bounds":{"document_bytes":16777216,"sheet_cells":100000,"rows_first":2000,"rows_last":500,"rows_between":2000,"halvings":0,"cell_chars":16384,"cell_head_chars":4096},"cells_cut":0,"cells_raw":0,"read":"whole","date_system":"1900"}

{"sheet":"入力用シート","index":0,"n_rows":29,"n_cols":24,"rows_kept":29,"cut":false,"hidden":false,"merged":[[28,1,28,2]]}
["このシートは入力用です。黄色の部分のみ入力してください"]
["ご提出には（提出用）を印刷の上、各営業所迄ご提出ください。メール等オンラインでの提出は受け付けておりません。"]
["＜御社様情報＞",null,null,null,"1）1件1葉とし、（提出用）を必着日迄に請求先営業所宛にご提出ください。"]
["社名・支店(営業所)名",null,null,null,"2）請求書提出が遅れますと次回廻しとなります。"]
["住所１"]
["住所2",null,null,null,"≪要注意事項≫"]
["電話番号",null,null,null,"1）締日・必着日については、各営業所迄お問い合わせください。"]
["インボイス登録番号",null,null,null,"2）外注費支払日 ： 翌月25日 / 材料費支払日 ： 翌々月25日"]
["振込先銀行・支店名",null,null,null,"※但し、お支払日が休日の場合は、前営業日でのお支払いとなります。"]
["振込口座種別・番号"]
["＜請求書情報＞",null,null,null,"≪建築事業部　各営業所お問い合わせ先≫"]
["請求締月",null,"⇒○○○○/○○（年/月）",null,"㈱カシワバラ・コーポレーション"]
["現場名",null,null,null,"※お支払いは部署毎の振込です。"]
["注文番号",null,"⇒注文書左上 ﾊｲﾌﾝ右側の最大2桁番号",null,"　首都圏第1建築部　TEL　03-3689-1101　　FAX　03-3689-1040"]
["工種番号(新工種)",null,"⇒選択式 不明の場合は空欄可",null,"　首都圏第2建築部　TEL　03-3689-1020　　FAX　03-3689-1242"]
["消費税率（選択式）",null,"⇒選択式※税率毎に作成をお願い致します※",null,"　山口建築部　　　　　TEL　0827-21-0175　　FAX　0827-21-5685"]
["契約金額",null,"（税抜）",null,"　安全品質管理部　　TEL　03-3689-1245　　FAX　03-6661-4123"]
["前回迄の受領金額",null,"（税抜）"]
["今回請求額",{"$f":"IF(C22=\"\",\"\",SUM(C22:C27))","v":""},"⇒確認用（税抜/内訳入力金額合算)"]
["＜請求内容内訳＞"]
["月　日","工事名称及び内訳","金　額",null,null,null,null,null,null,null,null,null,null,null,null,null,null,null,null,null,null,null,null,"金　　　　　額"]
[null,null,null,"（税抜）"]
[null,null,null,"（税抜）"]
[null,null,null,"（税抜）"]
[null,null,null,"（税抜）"]
[null,null,null,"（税抜）"]
[null,null,null,"（税抜）"]
["＜その他＞"]
["通信欄"]

{"sheet":"提出用","index":1,"n_rows":79,"n_cols":36,"rows_kept":79,"cut":false,"hidden":false,"merged":[[4,18,4,32],[20,23,20,32],[1,30,1,32],[41,30,41,32],[0,27,0,32],[40,27,40,32],[19,3,19,22],[20,3,20,22],[1,0,1,19],[21,3,21,22],[22,3,22,22],[16,0,16,9],[19,0,19,2],[19,23,19,32],[0,18,0,22],[0,10,0,17],[10,0,10,4],[10,5,10,9],[10,10,10,15],[18,0,18,32],[2,1,2,10],[13,0,13,9],[22,23,22,32],[23,23,23,32],[3,18,3,32],[5,18,5,32],[8,0,8,2],[13,10,13,19],[13,20,13,27],[13,28,13,32],[6,18,7,31],[7,3,8,15],[5,16,5,17],[14,20,14,27],[11,1,11,4],[11,5,11,9],[11,10,11,15],[14,0,14,9],[14,28,16,32],[15,0,15,9],[15,20,15,27],[16,10,16,19],[14,10,14,19],[15,10,15,19],[16,20,16,27],[21,23,21,32],[47,3,48,15],[48,0,48,2],[50,0,50,4],[50,5,50,9],[50,10,50,15],[43,18,43,32],[44,18,44,32],[45,16,45,17],[45,18,45,32],[46,18,47,31],[30,0,30,2],[30,3,30,32],[26,3,26,22],[27,3,27,22],[28,3,28,22],[26,23,26,32],[27,23,27,32],[28,23,28,32],[25,0,25,2],[24,23,24,32],[25,23,25,32],[22,0,22,2],[20,0,20,2],[21,0,21,2],[40,10,40,17],[40,18,40,22],[41,0,41,19],[42,1,42,10],[23,0,23,2],[24,0,24,2],[23,3,23,22],[24,3,24,22],[25,3,25,22],[55,10,55,19],[55,20,55,27],[56,0,56,9],[56,10,56,19],[56,20,56,27],[51,1,51,4],[51,5,51,9],[51,10,51,15],[53,0,53,9],[53,10,53,19],[63,0,63,2],[63,3,63,22],[63,23,63,32],[64,0,64,2],[64,3,64,22],[64,23,64,32],[61,0,61,2],[61,3,61,22],[61,23,61,32],[62,0,62,2],[62,3,62,22],[62,23,62,32],[68,3,68,22],[68,23,68,32],[70,0,70,2],[70,3,70,32],[65,0,65,2],[65,3,65,22],[65,23,65,32],[66,3,66,22],[66,23,66,32],[2,22,2,32],[8,18,8,21],[8,22,8,32],[9,22,9,32],[48,18,48,21],[48,22,48,32],[49,22,49,32],[42,25,42,32],[67,3,67,22],[67,23,67,32],[58,0,58,32],[59,0,59,2],[59,3,59,22],[59,23,59,32],[60,0,60,2],[60,3,60,22],[60,23,60,32],[53,20,53,27],[53,28,53,32],[54,0,54,9],[54,10,54,19],[54,20,54,27],[54,28,56,32],[55,0,55,9]]}
[null,null,null,null,null,null,null,null,null,null,"請求書",null,null,null,null,null,null,null,"（提出用）",null,null,null,null,null,null,null,null,{"$f":"IF(AE2=0.08,\"軽減税率対象\",\"\")","v":""}]
["株式会社カシワバラ・コーポレーション 御中",null,null,null,null,null,null,null,null,null,null,null,null,null,null,null,null,null,null,null,null,null,null,null,null,null,null,null,null,null,{"$f":"IF(入力用シート!$B$16=\"\",\"\",入力用シート!$B$16)","v":""}]
[null,{"$f":"IF(入力用シート!$B$12=\"\",\"\",入力用シート!$B$12)","v":""},null,null,null,null,null,null,null,null,null,null,null,null,null,null,"インボイス登録番号",null,null,null,null,null,{"$f":"IF(入力用シート!$B$8=\"\",\"\",入力用シート!$B$8)","v":""},null,null,null,null,null,null,null,null,null,null,null,"1","共通仮設"]
[null,null,null,null,null,null,null,null,null,null,null,null,null,null,null,null,"住所",null,{"$f":"IF(入力用シート!$B$5=\"\",\"\",入力用シート!$B$5)","v":""},null,null,null,null,null,null,null,null,null,null,null,null,null,null,null,"2","直接仮設"]
["下記の通り御請求申し上げます。",null,null,null,null,null,null,null,null,null,null,null,null,null,null,null,null,null,{"$f":"IF(入力用シート!$B$6=\"\",\"\",入力用シート!$B$6)","v":""},null,null,null,null,null,null,null,null,null,null,null,null,null,null,null,"3-1","土"]
[null,null,null,null,null,null,null,null,null,null,null,null,null,null,null,null,"電話",null,{"$f":"IF(入力用シート!$B$7=\"\",\"\",入力用シート!$B$7)","v":""},null,null,null,null,null,null,null,null,null,null,null,null,null,null,null,"3-2","山留"]
[null,null,null,null,null,null,null,null,null,null,null,null,null,null,null,null,null,null,{"$f":"IF(入力用シート!$B$4=\"\",\"\",入力用シート!$B$4)","v":""},null,null,null,null,null,null,null,null,null,null,null,null,null,null,null,"4-1","地業"]
[null,null,null,{"$f":"IF(入力用シート!$B$13=\"\",\"\",入力用シート!$B$13)","v":""},null,null,null,null,null,null,null,null,null,null,null,null,"社名",null,null,null,null,null,null,null,null,null,null,null,null,null,null,null,"印",null,"5-1","鉄筋（材）"]
["現場名",null,null,null,null,null,null,null,null,null,null,null,null,null,null,null,null,null,"振込先 ：",null,null,null,{"$f":"IF(入力用シート!$B$9=\"\",\"\",入力用シート!$B$9)","v":""},null,null,null,null,null,null,null,null,null,null,null,"5-2","鉄筋（労）"]
[null,null,null,null,null,null,null,null,null,null,null,null,null,null,null,null,null,null,null,null,null,null,{"$f":"IF(入力用シート!$B$10=\"\",\"\",入力用シート!$B$10)","v":""},null,null,null,null,null,null,null,null,null,null,null,"6-1","ｺﾝｸﾘｰﾄ（材）"]
["注文番号",null,null,null,null,"工種番号",null,null,null,null,"工種名称",null,null,null,null,null,null,null,null,null,null,null,null,null,null,null,null,null,null,null,null,null,null,null,"6-2","ｺﾝｸﾘｰﾄ（労）"]
["№",{"$f":"IF(入力用シート!$B$14=\"\",\"\",入力用シート!$B$14)","v":""},null,null,null,{"$f":"IF(入力用シート!$B$15=\"\",\"\",入力用シート!$B$15)","v":""},null,null,null,null,{"$f":"IF($F$12=\"\",\"\",VLOOKUP($F$12,$AI$3:$AJ$45,2,FALSE))","v":""},null,null,null,null,null,null,null,null,null,null,null,null,null,null,null,null,null,null,null,null,null,null,null,"6-3","型枠"]
[null,null,null,null,null,null,null,null,null,null,null,null,null,null,null,null,null,null,null,null,null,null,null,null,null,null,null,null,null,null,null,null,null,null,"7","鉄骨"]
[null,null,null,null,null,null,null,null,null,null,"金額",null,null,null,null,null,null,null,null,null,"消費税",null,null,null,null,null,null,null,"備考",null,null,null,null,null,"8-1","ALC・押出成形"]
["契約金額",null,null,null,null,null,null,null,null,null,{"$f":"IF(入力用シート!$B$17=\"\",\"\",入力用シート!$B$17)","v":""},null,null,null,null,null,null,null,null,null,{"$f":"IF(入力用シート!$B$17=\"\",\"\",IF(入力用シート!$B$16=\"非課税\",\"\",提出用!K15*入力用シート!$B$16))","v":""},null,null,null,null,null,null,null,null,null,null,null,null,null,"8-2","ｺﾝｸﾘｰﾄﾌﾞﾛｯｸ"]
["前回迄の受領金額",null,null,null,null,null,null,null,null,null,{"$f":"IF(入力用シート!$B$18=\"\",\"\",入力用シート!$B$18)","v":""},null,null,null,null,null,null,null,null,null,{"$f":"IF(入力用シート!$B$18=\"\",\"\",IF(入力用シート!$B$16=\"非課税\",\"\",提出用!K16*入力用シート!$B$16))","v":""},null,null,null,null,null,null,null,null,null,null,null,null,null,"9-1","防水"]
["今回請求金額",null,null,null,null,null,null,null,null,null,{"$f":"IF(入力用シート!$B$19=\"\",\"\",入力用シート!$B$19)","v":""},null,null,null,null,null,null,null,null,null,{"$f":"IF(入力用シート!$B$19=\"\",\"\",IF(入力用シート!$B$16=\"非課税\",\"\",ROUNDDOWN(提出用!K17*入力用シート!$B$16,0)))","v":""},null,null,null,null,null,null,null,null,null,null,null,null,null,"10","石"]
[null,null,null,null,null,null,null,null,null,null,null,null,null,null,null,null,null,null,null,null,null,null,null,null,null,null,null,null,null,null,null,null,null,null,"11","タイル"]
["請求内容書",null,null,null,null,null,null,null,null,null,null,null,null,null,null,null,null,null,null,null,null,null,null,null,null,null,null,null,null,null,null,null,null,null,"12","木"]
["月　日",null,null,"工事名称及び内訳",null,null,null,null,null,null,null,null,null,null,null,null,null,null,null,null,null,null,null,"金　　　　　額",null,null,null,null,null,null,null,null,null,null,"13","屋根・とい"]
[{"$f":"IF(入力用シート!$A$22=\"\",\"\",入力用シート!$A$22)","v":""},null,null,{"$f":"IF(入力用シート!$B$22=\"\",\"\",入力用シート!$B$22)","v":""},null,null,null,null,null,null,null,null,null,null,null,null,null,null,null,null,null,null,null,{"$f":"IF(入力用シート!$C$22=\"\",\"\",入力用シート!$C$22)","v":""},null,null,null,null,null,null,null,null,null,null,"14-1","金属（軽鉄等）"]
[{"$f":"IF(入力用シート!$A$23=\"\",\"\",入力用シート!$A$23)","v":""},null,null,{"$f":"IF(入力用シート!$B$23=\"\",\"\",入力用シート!$B$23)","v":""},null,null,null,null,null,null,null,null,null,null,null,null,null,null,null,null,null,null,null,{"$f":"IF(入力用シート!$C$23=\"\",\"\",入力用シート!$C$23)","v":""},null,null,null,null,null,null,null,null,null,null,"14-2","金物"]
[{"$f":"IF(入力用シート!$A$24=\"\",\"\",入力用シート!$A$24)","v":""},null,null,{"$f":"IF(入力用シート!$B$24=\"\",\"\",入力用シート!$B$24)","v":""},null,null,null,null,null,null,null,null,null,null,null,null,null,null,null,null,null,null,null,{"$f":"IF(入力用シート!$C$24=\"\",\"\",入力用シート!$C$24)","v":""},null,null,null,null,null,null,null,null,null,null,"15","左官"]
[{"$f":"IF(入力用シート!$A$25=\"\",\"\",入力用シート!$A$25)","v":""},null,null,{"$f":"IF(入力用シート!$B$25=\"\",\"\",入力用シート!$B$25)","v":""},null,null,null,null,null,null,null,null,null,null,null,null,null,null,null,null,null,null,null,{"$f":"IF(入力用シート!$C$25=\"\",\"\",入力用シート!$C$25)","v":""},null,null,null,null,null,null,null,null,null,null,"16-1","鋼製建具"]
[{"$f":"IF(入力用シート!$A$26=\"\",\"\",入力用シート!$A$26)","v":""},null,null,{"$f":"IF(入力用シート!$B$26=\"\",\"\",入力用シート!$B$26)","v":""},null,null,null,null,null,null,null,null,null,null,null,null,null,null,null,null,null,null,null,{"$f":"IF(入力用シート!$C$26=\"\",\"\",入力用シート!$C$26)","v":""},null,null,null,null,null,null,null,null,null,null,"16-2","木製建具"]
[{"$f":"IF(入力用シート!$A$27=\"\",\"\",入力用シート!$A$27)","v":""},null,null,{"$f":"IF(入力用シート!$B$27=\"\",\"\",入力用シート!$B$27)","v":""},null,null,null,null,null,null,null,null,null,null,null,null,null,null,null,null,null,null,null,{"$f":"IF(入力用シート!$C$27=\"\",\"\",入力用シート!$C$27)","v":""},null,null,null,null,null,null,null,null,null,null,"16-3","ガラス"]
[null,null,null,"小計",null,null,null,null,null,null,null,null,null,null,null,null,null,null,null,null,null,null,null,{"$f":"入力用シート!$B$19","v":""},null,null,null,null,null,null,null,null,null,null,"17","ｶｰﾃﾝｳｫｰﾙ"]
[null,null,null,"消費税",null,null,null,null,null,null,null,null,null,null,null,null,null,null,null,null,null,null,null,{"$f":"$U$17","v":""},null,null,null,null,null,null,null,null,null,null,"18-1","塗装（材）"]
[null,null,null,"合計",null,null,null,null,null,null,null,null,null,null,null,null,null,null,null,null,null,null,null,{"$f":"SUM($X$27:$AG$28)","v":0},null,null,null,null,null,null,null,null,null,null,"18-2","塗装（労）"]
[null,null,null,null,null,null,null,null,null,null,null,null,null,null,null,null,null,null,null,null,null,null,null,null,null,null,null,null,null,null,null,null,null,null,"19-1","内装"]
["通信欄",null,null,{"$f":"IF(入力用シート!$B$29=\"\",\"\",入力用シート!$B$29)","v":""},null,null,null,null,null,null,null,null,null,null,null,null,null,null,null,null,null,null,null,null,null,null,null,null,null,null,null,null,null,null,"19-2","内装仕上"]
[null,null,null,null,null,null,null,null,null,null,null,null,null,null,null,null,null,null,null,null,null,null,null,null,null,null,null,null,null,null,null,null,null,null,"20-1","ユニット"]
["1）1件1葉とし、（提出用）を必着日迄に請求先営業所経理担当宛にご提出ください。",null,null,null,null,null,null,null,null,null,null,null,null,null,null,null,null,null,null,null,null,null,null,null,null,null,null,null,null,null,null,null,null,null,"20-2","家具"]
["2）請求書提出が遅れますと次回廻しとなります。",null,null,null,null,null,null,null,null,null,null,null,null,null,null,null,null,null,null,null,null,null,null,null,null,null,null,null,null,null,null,null,null,null,"20-3","その他"]
[null,null,null,null,null,null,null,null,null,null,null,null,null,null,null,null,null,null,null,null,null,null,null,null,null,null,null,null,null,null,null,null,null,null,"21-1","外構"]
["≪要注意事項≫",null,null,null,null,null,null,null,null,null,null,null,null,null,null,null,null,null,null,null,null,null,null,null,null,null,null,null,null,null,null,null,null,null,"21-2","舗装"]
["1）締日・必着日については、各営業所迄お問い合わせください。",null,null,null,null,null,null,null,null,null,null,null,null,null,null,null,null,null,null,null,null,null,null,null,null,null,null,null,null,null,null,null,null,null,"21-3","植栽"]
["2）外注費支払日 ： 翌月25日 / 材料費支払日 ： 翌々月25日",null,null,null,null,null,null,null,null,null,null,null,null,null,null,null,null,null,null,null,null,null,null,null,null,null,null,null,null,null,null,null,null,null,"22","電気"]
["※","但し、お支払日が休日の場合は、前営業日でのお支払いとなります。",null,null,null,null,null,null,null,null,null,null,null,null,null,null,null,null,null,null,null,null,null,null,null,null,null,null,null,null,null,null,null,null,"23","給排水衛生設備"]
[null,null,null,null,null,null,null,null,null,null,null,null,null,null,null,null,null,null,null,null,null,null,null,null,null,null,null,null,null,null,null,null,null,null,"24","空調・換気設備"]
[null,null,null,null,null,null,null,null,null,null,"請求書",null,null,null,null,null,null,null,"（控用）",null,null,null,null,null,null,null,null,{"$f":"IF(AE42=0.08,\"軽減税率対象\",\"\")","v":""},null,null,null,null,null,null,"25","ｶﾞｽ"]
["株式会社カシワバラ・コーポレーション 御中",null,null,null,null,null,null,null,null,null,null,null,null,null,null,null,null,null,null,null,null,null,null,null,null,null,null,null,null,null,{"$f":"IF(入力用シート!$B$16=\"\",\"\",入力用シート!$B$16)","v":""},null,null,null,"26","特殊設備"]
[null,{"$f":"IF(入力用シート!$B$12=\"\",\"\",入力用シート!$B$12)","v":""},null,null,null,null,null,null,null,null,null,null,null,null,null,null,"適格請求書発行事業者登録番号",null,null,null,null,null,null,null,null,{"$f":"IF(入力用シート!$B$8=\"\",\"\",入力用シート!$B$8)","v":""},null,null,null,null,null,null,null,null,"27","解体"]
[null,null,null,null,null,null,null,null,null,null,null,null,null,null,null,null,"住所",null,{"$f":"IF(入力用シート!$B$5=\"\",\"\",入力用シート!$B$5)","v":""},null,null,null,null,null,null,null,null,null,null,null,null,null,null,null,"50","現場経費"]
["下記の通り御請求申し上げます。",null,null,null,null,null,null,null,null,null,null,null,null,null,null,null,null,null,{"$f":"IF(入力用シート!$B$6=\"\",\"\",入力用シート!$B$6)","v":""},null,null,null,null,null,null,null,null,null,null,null,null,null,null,null,"99","追加"]
[null,null,null,null,null,null,null,null,null,null,null,null,null,null,null,null,"電話",null,{"$f":"IF(入力用シート!$B$7=\"\",\"\",入力用シート!$B$7)","v":""}]
[null,null,null,null,null,null,null,null,null,null,null,null,null,null,null,null,null,null,{"$f":"IF(入力用シート!$B$4=\"\",\"\",入力用シート!$B$4)","v":""}]
[null,null,null,{"$f":"IF(入力用シート!$B$13=\"\",\"\",入力用シート!$B$13)","v":""},null,null,null,null,null,null,null,null,null,null,null,null,"社名",null,null,null,null,null,null,null,null,null,null,null,null,null,null,null,"印"]
["現場名",null,null,null,null,null,null,null,null,null,null,null,null,null,null,null,null,null,"振込先 ：",null,null,null,{"$f":"IF(入力用シート!$B$9=\"\",\"\",入力用シート!$B$9)","v":""}]
[null,null,null,null,null,null,null,null,null,null,null,null,null,null,null,null,null,null,null,null,null,null,{"$f":"IF(入力用シート!$B$10=\"\",\"\",入力用シート!$B$10)","v":""}]
["注文番号",null,null,null,null,"工種番号",null,null,null,null,"工種名称"]
["№",{"$f":"IF(入力用シート!$B$14=\"\",\"\",入力用シート!$B$14)","v":""},null,null,null,{"$f":"IF(入力用シート!$B$15=\"\",\"\",入力用シート!$B$15)","v":""},null,null,null,null,{"$f":"IF($F$12=\"\",\"\",VLOOKUP($F$12,$AI$3:$AJ$45,2,FALSE))","v":""}]
[]
[null,null,null,null,null,null,null,null,null,null,"金額",null,null,null,null,null,null,null,null,null,"消費税",null,null,null,null,null,null,null,"備考"]
["契約金額",null,null,null,null,null,null,null,null,null,{"$f":"IF(入力用シート!$B$17=\"\",\"\",入力用シート!$B$17)","v":""},null,null,null,null,null,null,null,null,null,{"$f":"IF(入力用シート!$B$17=\"\",\"\",IF(入力用シート!$B$16=\"非課税\",\"\",提出用!K55*入力用シート!$B$16))","v":""}]
["前回迄の受領金額",null,null,null,null,null,null,null,null,null,{"$f":"IF(入力用シート!$B$18=\"\",\"\",入力用シート!$B$18)","v":""},null,null,null,null,null,null,null,null,null,{"$f":"IF(入力用シート!$B$18=\"\",\"\",IF(入力用シート!$B$16=\"非課税\",\"\",提出用!K56*入力用シート!$B$16))","v":""}]
["今回請求金額",null,null,null,null,null,null,null,null,null,{"$f":"IF(入力用シート!$B$19=\"\",\"\",入力用シート!$B$19)","v":""},null,null,null,null,null,null,null,null,null,{"$f":"IF(入力用シート!$B$19=\"\",\"\",IF(入力用シート!$B$16=\"非課税\",\"\",ROUNDDOWN(提出用!K57*入力用シート!$B$16,0)))","v":""}]
[]
["請求内容書"]
["月　日",null,null,"工事名称及び内訳",null,null,null,null,null,null,null,null,null,null,null,null,null,null,null,null,null,null,null,"金　　　　　額"]
[{"$f":"IF(入力用シート!$A$22=\"\",\"\",入力用シート!$A$22)","v":""},null,null,{"$f":"IF(入力用シート!$B$22=\"\",\"\",入力用シート!$B$22)","v":""},null,null,null,null,null,null,null,null,null,null,null,null,null,null,null,null,null,null,null,{"$f":"IF(入力用シート!$C$22=\"\",\"\",入力用シート!$C$22)","v":""}]
[{"$f":"IF(入力用シート!$A$23=\"\",\"\",入力用シート!$A$23)","v":""},null,null,{"$f":"IF(入力用シート!$B$23=\"\",\"\",入力用シート!$B$23)","v":""},null,null,null,null,null,null,null,null,null,null,null,null,null,null,null,null,null,null,null,{"$f":"IF(入力用シート!$C$23=\"\",\"\",入力用シート!$C$23)","v":""}]
[{"$f":"IF(入力用シート!$A$24=\"\",\"\",入力用シート!$A$24)","v":""},null,null,{"$f":"IF(入力用シート!$B$24=\"\",\"\",入力用シート!$B$24)","v":""},null,null,null,null,null,null,null,null,null,null,null,null,null,null,null,null,null,null,null,{"$f":"IF(入力用シート!$C$24=\"\",\"\",入力用シート!$C$24)","v":""}]
[{"$f":"IF(入力用シート!$A$25=\"\",\"\",入力用シート!$A$25)","v":""},null,null,{"$f":"IF(入力用シート!$B$25=\"\",\"\",入力用シート!$B$25)","v":""},null,null,null,null,null,null,null,null,null,null,null,null,null,null,null,null,null,null,null,{"$f":"IF(入力用シート!$C$25=\"\",\"\",入力用シート!$C$25)","v":""}]
[{"$f":"IF(入力用シート!$A$26=\"\",\"\",入力用シート!$A$26)","v":""},null,null,{"$f":"IF(入力用シート!$B$26=\"\",\"\",入力用シート!$B$26)","v":""},null,null,null,null,null,null,null,null,null,null,null,null,null,null,null,null,null,null,null,{"$f":"IF(入力用シート!$C$26=\"\",\"\",入力用シート!$C$26)","v":""}]
[{"$f":"IF(入力用シート!$A$27=\"\",\"\",入力用シート!$A$27)","v":""},null,null,{"$f":"IF(入力用シート!$B$27=\"\",\"\",入力用シート!$B$27)","v":""},null,null,null,null,null,null,null,null,null,null,null,null,null,null,null,null,null,null,null,{"$f":"IF(入力用シート!$C$27=\"\",\"\",入力用シート!$C$27)","v":""}]
[null,null,null,"小計",null,null,null,null,null,null,null,null,null,null,null,null,null,null,null,null,null,null,null,{"$f":"入力用シート!$B$19","v":""}]
[null,null,null,"消費税",null,null,null,null,null,null,null,null,null,null,null,null,null,null,null,null,null,null,null,{"$f":"$U$17","v":""}]
[null,null,null,"合計",null,null,null,null,null,null,null,null,null,null,null,null,null,null,null,null,null,null,null,{"$f":"SUM($X$27:$AG$28)","v":0}]
[]
["通信欄",null,null,{"$f":"IF(入力用シート!$B$29=\"\",\"\",入力用シート!$B$29)","v":""}]
[]
["1）1件1葉とし、（提出用）を必着日迄に請求先営業所経理担当宛にご提出ください。"]
["2）請求書提出が遅れますと次回廻しとなります。"]
[]
["≪要注意事項≫"]
["1）締日・必着日については、各営業所迄お問い合わせください。"]
["2）外注費支払日 ： 翌月25日 / 材料費支払日 ： 翌々月25日"]
["※","但し、お支払日が休日の場合は、前営業日でのお支払いとなります。"]

{"sheet":"提出用(手書版)","index":2,"n_rows":39,"n_cols":33,"rows_kept":39,"cut":false,"hidden":false,"merged":[[7,18,7,31],[0,10,0,17],[0,18,0,22],[3,18,3,32],[4,18,4,32],[6,18,6,32],[1,0,1,19],[5,18,5,32],[5,16,5,17],[1,31,1,32],[1,28,1,30],[2,23,2,32],[8,0,8,2],[8,3,8,15],[10,0,10,4],[10,5,10,9],[10,10,10,15],[13,0,13,9],[13,10,13,19],[13,20,13,27],[13,28,13,32],[11,1,11,4],[11,5,11,9],[11,10,11,15],[22,3,22,22],[14,0,14,9],[14,28,16,32],[15,0,15,9],[16,0,16,9],[18,0,18,32],[19,0,19,2],[19,3,19,22],[19,23,19,32],[20,3,20,22],[21,3,21,22],[30,0,30,2],[30,3,30,32],[23,3,23,22],[24,3,24,22],[25,3,25,22],[26,3,26,22],[27,3,27,22],[28,3,28,22]]}
[null,null,null,null,null,null,null,null,null,null,"請求書",null,null,null,null,null,null,null,"（提出用）"]
["株式会社カシワバラ・コーポレーション 御中",null,null,null,null,null,null,null,null,null,null,null,null,null,null,null,null,null,null,null,null,null,null,null,null,null,null,null,null,null,null,"％"]
[null,2,0,null,null,"年",null,null,"月 締",null,null,null,null,null,null,null,"インボイス登録番号",null,null,null,null,null,"T"]
[null,null,null,null,null,null,null,null,null,null,null,null,null,null,null,null,"住所"]
["下記の通り御請求申し上げます。"]
[null,null,null,null,null,null,null,null,null,null,null,null,null,null,null,null,"電話"]
[]
[null,null,null,null,null,null,null,null,null,null,null,null,null,null,null,null,"社名",null,null,null,null,null,null,null,null,null,null,null,null,null,null,null,"印"]
["現場名"]
[]
["注文番号",null,null,null,null,"工種番号",null,null,null,null,"工種名称"]
["№"]
[]
[null,null,null,null,null,null,null,null,null,null,"金額",null,null,null,null,null,null,null,null,null,"消費税",null,null,null,null,null,null,null,"備考"]
["契約金額"]
["前回迄の受領金額"]
["今回請求金額"]
[]
["請求内容書"]
["月　日",null,null,"工事名称及び内訳",null,null,null,null,null,null,null,null,null,null,null,null,null,null,null,null,null,null,null,"金　　　　　額"]
[null,"／"]
[null,"／"]
[null,"／"]
[null,"／"]
[null,"／"]
[null,"／"]
[null,null,null,"小計"]
[null,null,null,"消費税"]
[null,null,null,"合計"]
[]
["通信欄"]
[]
["1）1件1葉とし、（提出用）を必着日迄に請求先営業所経理担当宛にご提出ください。"]
["2）請求書提出が遅れますと次回廻しとなります。"]
[]
["≪要注意事項≫"]
["1）締日・必着日については、各営業所迄お問い合わせください。"]
["2）外注費支払日 ： 翌月25日 / 材料費支払日 ： 翌々月25日"]
["※","但し、お支払日が休日の場合は、前営業日でのお支払いとなります。"]